[Event "Titled Tuesday Blitz February 21 Late 2023"]
[White "Buchenau, Frank"]
[Black "Skaric, Djuro"]
[WhiteFideId "4604350"]
[BlackFideId "934569"]
[WhiteElo "2222"]
[BlackElo "2334"]
[Result "1-0"]
[Round "11"]
[TimeControl "180+2"]
[Date "2023.02.21"]
[WhiteClock "0:00:09"]
[BlackClock "0:00:41"]

1. e4 {[%clk 0:02:58]}  d6 {[%clk 0:03:00]} 2. d4 {[%clk 0:02:58]}  g6 {[%clk 0:03:01]} 3. Nc3 {[%clk 0:02:57]}  Bg7 {[%clk 0:03:01]} 4. Nf3 {[%clk 0:02:57]}  Nf6 {[%clk 0:03:02]} 5. Be2 {[%clk 0:02:57]}  O-O {[%clk 0:03:02]} 6. O-O {[%clk 0:02:57]}  Nc6 {[%clk 0:03:02]} 7. d5 {[%clk 0:02:57]}  Ne5 {[%clk 0:03:02]} 8. Nxe5 {[%clk 0:02:56]}  dxe5 {[%clk 0:03:03]} 9. Bg5 {[%clk 0:02:55]}  Ne8 {[%clk 0:03:02]} 10. Qd2 {[%clk 0:02:50]}  f5 {[%clk 0:03:01]} 11. f3 {[%clk 0:02:45]}  Nd6 {[%clk 0:03:00]} 12. Bd3 {[%clk 0:02:30]}  a6 {[%clk 0:02:55]} 13. a4 {[%clk 0:02:30]}  f4 {[%clk 0:02:54]} 14. a5 {[%clk 0:02:27]}  h6 {[%clk 0:02:54]} 15. Bh4 {[%clk 0:02:27]}  g5 {[%clk 0:02:51]} 16. Bf2 {[%clk 0:02:26]}  Rf6 {[%clk 0:02:48]} 17. Na4 {[%clk 0:02:23]}  Rg6 {[%clk 0:02:48]} 18. g4 {[%clk 0:02:14]}  fxg3 {[%clk 0:02:47]} 19. hxg3 {[%clk 0:02:08]}  Kh7 {[%clk 0:02:46]} 20. Nc5 {[%clk 0:02:07]}  Qg8 {[%clk 0:02:44]} 21. c4 {[%clk 0:01:58]}  Bf6 {[%clk 0:02:44]} 22. Kg2 {[%clk 0:01:52]}  h5 {[%clk 0:02:43]} 23. Rh1 {[%clk 0:01:51]}  h4 {[%clk 0:02:44]} 24. Kf1 {[%clk 0:01:43]}  Rh6 {[%clk 0:02:43]} 25. g4 {[%clk 0:01:32]}  Qf7 {[%clk 0:02:42]} 26. Kg2 {[%clk 0:01:31]}  Kg6 {[%clk 0:02:32]} 27. b4 {[%clk 0:01:30]}  Rh8 {[%clk 0:02:30]} 28. Rh3 {[%clk 0:01:28]}  Rf8 {[%clk 0:02:29]} 29. b5 {[%clk 0:01:17]}  Bg7 {[%clk 0:02:28]} 30. bxa6 {[%clk 0:01:14]}  bxa6 {[%clk 0:02:21]} 31. Rb1 {[%clk 0:01:13]}  Qf6 {[%clk 0:02:16]} 32. Be3 {[%clk 0:00:59]}  Rf7 {[%clk 0:02:10]} 33. Qe2 {[%clk 0:00:57]}  Bh6 {[%clk 0:02:07]} 34. Rhh1 {[%clk 0:00:56]}  e6 {[%clk 0:01:59]} 35. dxe6 {[%clk 0:00:54]}  Bxe6 {[%clk 0:01:59]} 36. Nxe6 {[%clk 0:00:53]}  Qxe6 {[%clk 0:01:57]} 37. c5 {[%clk 0:00:53]}  Nb5 {[%clk 0:01:56]} 38. Bc4 {[%clk 0:00:53]}  Qf6 {[%clk 0:01:56]} 39. Bxf7+ {[%clk 0:00:52]}  Qxf7 {[%clk 0:01:56]} 40. Qd3 {[%clk 0:00:44]}  Rf8 {[%clk 0:01:52]} 41. Rhf1 {[%clk 0:00:42]}  Bg7 {[%clk 0:01:43]} 42. Qd5 {[%clk 0:00:42]}  Qe7 {[%clk 0:01:38]} 43. Rbd1 {[%clk 0:00:34]}  Rf7 {[%clk 0:01:35]} 44. Qc6+ {[%clk 0:00:33]}  Bf6 {[%clk 0:01:33]} 45. Rd5 {[%clk 0:00:27]}  Kg7 {[%clk 0:01:31]} 46. Rfd1 {[%clk 0:00:25]}  Nd4 {[%clk 0:01:31]} 47. Bxd4 {[%clk 0:00:22]}  exd4 {[%clk 0:01:31]} 48. Rf5 {[%clk 0:00:20]}  h3+ {[%clk 0:01:26]} 49. Kxh3 {[%clk 0:00:19]}  Be5 {[%clk 0:01:11]} 50. Kg2 {[%clk 0:00:18]}  Rf6 {[%clk 0:01:08]} 51. Rxf6 {[%clk 0:00:18]}  Bxf6 {[%clk 0:01:08]} 52. Qd5 {[%clk 0:00:16]}  Be5 {[%clk 0:01:07]} 53. c6 {[%clk 0:00:16]}  Kf6 {[%clk 0:01:06]} 54. Rxd4 {[%clk 0:00:14]}  Bxd4 {[%clk 0:01:04]} 55. Qxd4+ {[%clk 0:00:15]}  Kg6 {[%clk 0:01:03]} 56. Qd7 {[%clk 0:00:13]}  Qb4 {[%clk 0:01:01]} 57. Qf5+ {[%clk 0:00:12]}  Kh6 {[%clk 0:01:01]} 58. Qf6+ {[%clk 0:00:12]}  Kh7 {[%clk 0:01:01]} 59. Qxg5 {[%clk 0:00:12]}  Qb2+ {[%clk 0:00:54]} 60. Kg3 {[%clk 0:00:12]}  Qa1 {[%clk 0:00:53]} 61. Qf5+ {[%clk 0:00:11]}  Kg7 {[%clk 0:00:52]} 62. g5 {[%clk 0:00:11]}  Qe1+ {[%clk 0:00:51]} 63. Kg4 {[%clk 0:00:10]}  Qg1+ {[%clk 0:00:50]} 64. Kf4 {[%clk 0:00:11]}  Qh2+ {[%clk 0:00:50]} 65. Ke3 {[%clk 0:00:11]}  Qg1+ {[%clk 0:00:50]} 66. Kd3 {[%clk 0:00:11]}  Qd1+ {[%clk 0:00:50]} 67. Kc4 {[%clk 0:00:10]}  Qc2+ {[%clk 0:00:49]} 68. Kd5 {[%clk 0:00:10]}  Qb3+ {[%clk 0:00:48]} 69. Ke5 {[%clk 0:00:10]}  Qb5+ {[%clk 0:00:46]} 70. Kf4 {[%clk 0:00:10]}  Qxc6 {[%clk 0:00:45]} 71. Qe5+ {[%clk 0:00:10]}  Kg8 {[%clk 0:00:44]} 72. Kg4 {[%clk 0:00:10]}  Qd7+ {[%clk 0:00:43]} 73. Qf5 {[%clk 0:00:10]}  Qd2 {[%clk 0:00:42]} 74. g6 {[%clk 0:00:10]}  Qg2+ {[%clk 0:00:42]} 75. Kf4 {[%clk 0:00:10]}  Qh2+ {[%clk 0:00:42]} 76. Kg5 {[%clk 0:00:10]}  Qg3+ {[%clk 0:00:41]} 77. Kf6 {[%clk 0:00:10]}  Qh4+ {[%clk 0:00:41]} 78. Ke6 {[%clk 0:00:09]} 1-0


[Site "https://www.chess.com"]

[Event "Titled Tuesday Blitz February 21 Late 2023"]
[White "Ruiz Aguilar, Pablo Alexander"]
[Black "Delorme, Axel"]
[WhiteFideId "4401352"]
[BlackFideId "632023"]
[WhiteElo "2161"]
[BlackElo "2483"]
[Result "1-0"]
[Round "11"]
[TimeControl "180+2"]
[Date "2023.02.21"]
[WhiteClock "0:00:14"]
[BlackClock "0:00:01"]

1. e4 {[%clk 0:03:00]}  c5 {[%clk 0:02:58]} 2. Nf3 {[%clk 0:03:00]}  d6 {[%clk 0:02:58]} 3. d4 {[%clk 0:03:01]}  cxd4 {[%clk 0:02:59]} 4. Nxd4 {[%clk 0:03:01]}  Nf6 {[%clk 0:03:00]} 5. Nc3 {[%clk 0:03:02]}  a6 {[%clk 0:02:58]} 6. Be2 {[%clk 0:03:02]}  e5 {[%clk 0:02:58]} 7. Nf3 {[%clk 0:03:02]}  h6 {[%clk 0:02:56]} 8. Be3 {[%clk 0:02:58]}  Be6 {[%clk 0:02:56]} 9. Nd2 {[%clk 0:02:58]}  Qc7 {[%clk 0:02:53]} 10. f4 {[%clk 0:02:45]}  exf4 {[%clk 0:02:50]} 11. Bxf4 {[%clk 0:02:46]}  Nc6 {[%clk 0:02:50]} 12. Nc4 {[%clk 0:02:39]}  Ne5 {[%clk 0:02:49]} 13. Ne3 {[%clk 0:02:33]}  Be7 {[%clk 0:02:45]} 14. Ned5 {[%clk 0:02:25]}  Nxd5 {[%clk 0:02:41]} 15. Nxd5 {[%clk 0:02:25]}  Bxd5 {[%clk 0:02:38]} 16. Qxd5 {[%clk 0:02:24]}  Qxc2 {[%clk 0:02:29]} 17. Qxb7 {[%clk 0:01:50]}  O-O {[%clk 0:01:55]} 18. Bxe5 {[%clk 0:01:39]}  dxe5 {[%clk 0:01:49]} 19. Qxe7 {[%clk 0:01:38]}  Qxe4 {[%clk 0:01:30]} 20. Qa3 {[%clk 0:01:27]}  Rfc8 {[%clk 0:01:20]} 21. Qf3 {[%clk 0:01:14]}  Qb4+ {[%clk 0:01:19]} 22. Kf2 {[%clk 0:01:15]}  Rab8 {[%clk 0:00:59]} 23. b3 {[%clk 0:01:03]}  Rc3 {[%clk 0:00:56]} 24. Qd5 {[%clk 0:00:50]}  Qh4+ {[%clk 0:00:51]} 25. g3 {[%clk 0:00:49]}  Qf6+ {[%clk 0:00:51]} 26. Kg2 {[%clk 0:00:45]}  Rd8 {[%clk 0:00:48]} 27. Qe4 {[%clk 0:00:34]}  Qg5 {[%clk 0:00:34]} 28. Rhf1 {[%clk 0:00:31]}  Re3 {[%clk 0:00:28]} 29. Qc4 {[%clk 0:00:30]}  Rd2 {[%clk 0:00:20]} 30. Rf2 {[%clk 0:00:31]}  Qg6 {[%clk 0:00:07]} 31. Raf1 {[%clk 0:00:24]}  Kh7 {[%clk 0:00:03]} 32. Kg1 {[%clk 0:00:22]}  f5 {[%clk 0:00:02]} 33. Bh5 {[%clk 0:00:17]}  Qg5 {[%clk 0:00:01]} 34. Rxd2 {[%clk 0:00:14]} 1-0


[Site "https://www.chess.com"]

[Event "Titled Tuesday Blitz February 21 Late 2023"]
[White "Leve, Nitai"]
[Black "Zampronha, Wladimir Camilo"]
[WhiteFideId "2006898"]
[BlackFideId "2103087"]
[WhiteElo "2128"]
[BlackElo "2176"]
[Result "1/2-1/2"]
[Round "11"]
[TimeControl "180+2"]
[Date "2023.02.21"]
[WhiteClock "0:00:20"]
[BlackClock "0:01:48"]

1. e4 {[%clk 0:02:41]}  c5 {[%clk 0:03:00]} 2. Nf3 {[%clk 0:02:38]}  e6 {[%clk 0:03:00]} 3. d4 {[%clk 0:02:37]}  cxd4 {[%clk 0:03:01]} 4. Nxd4 {[%clk 0:02:38]}  Nc6 {[%clk 0:03:02]} 5. Nc3 {[%clk 0:02:38]}  Qc7 {[%clk 0:03:02]} 6. Nxc6 {[%clk 0:02:38]}  bxc6 {[%clk 0:03:02]} 7. Bd3 {[%clk 0:02:39]}  e5 {[%clk 0:02:59]} 8. O-O {[%clk 0:02:39]}  Nf6 {[%clk 0:02:59]} 9. f4 {[%clk 0:02:38]}  Bc5+ {[%clk 0:02:55]} 10. Kh1 {[%clk 0:02:38]}  d6 {[%clk 0:02:55]} 11. fxe5 {[%clk 0:02:38]}  dxe5 {[%clk 0:02:55]} 12. Qf3 {[%clk 0:02:36]}  Be6 {[%clk 0:02:52]} 13. Bg5 {[%clk 0:02:35]}  Nd7 {[%clk 0:02:46]} 14. Rad1 {[%clk 0:02:13]}  Rb8 {[%clk 0:02:44]} 15. b3 {[%clk 0:02:03]}  O-O {[%clk 0:02:43]} 16. a4 {[%clk 0:01:53]}  f6 {[%clk 0:02:39]} 17. Be3 {[%clk 0:01:50]}  Qb6 {[%clk 0:02:31]} 18. Bc4 {[%clk 0:01:35]}  Bxc4 {[%clk 0:02:17]} 19. bxc4 {[%clk 0:01:29]}  Bxe3 {[%clk 0:01:58]} 20. Rxd7 {[%clk 0:01:28]}  Rfd8 {[%clk 0:01:50]} 21. Rxg7+ {[%clk 0:00:17]}  Kxg7 {[%clk 0:01:48]} 22. Qxf6+ {[%clk 0:00:17]}  Kg8 {[%clk 0:01:47]} 23. Qf7+ {[%clk 0:00:17]}  Kh8 {[%clk 0:01:47]} 24. Qf6+ {[%clk 0:00:18]}  Kg8 {[%clk 0:01:47]} 25. Qf7+ {[%clk 0:00:19]}  Kh8 {[%clk 0:01:48]} 26. Qf6+ {[%clk 0:00:20]}  Kg8 {[%clk 0:01:48]} 1/2-1/2


[Site "https://www.chess.com"]

[Event "Titled Tuesday Blitz February 21 Late 2023"]
[White "Meunier-Pion, Jean"]
[Black "Comas Fabrego, Lluis"]
[WhiteFideId "20685327"]
[BlackFideId "2200325"]
[WhiteElo "2215"]
[BlackElo "2424"]
[Result "1-0"]
[Round "11"]
[TimeControl "180+2"]
[Date "2023.02.21"]
[WhiteClock "0:00:20"]
[BlackClock "0:00:04"]

1. e4 {[%clk 0:03:00]}  c5 {[%clk 0:02:58]} 2. Nf3 {[%clk 0:03:01]}  d6 {[%clk 0:02:58]} 3. d4 {[%clk 0:03:01]}  cxd4 {[%clk 0:02:59]} 4. Nxd4 {[%clk 0:03:02]}  Nf6 {[%clk 0:02:59]} 5. Nc3 {[%clk 0:03:02]}  g6 {[%clk 0:02:59]} 6. Be3 {[%clk 0:03:02]}  Bg7 {[%clk 0:02:59]} 7. f3 {[%clk 0:03:02]}  O-O {[%clk 0:02:59]} 8. Qd2 {[%clk 0:03:03]}  Nc6 {[%clk 0:02:59]} 9. O-O-O {[%clk 0:03:03]}  Nxd4 {[%clk 0:02:59]} 10. Bxd4 {[%clk 0:03:03]}  Be6 {[%clk 0:03:00]} 11. g4 {[%clk 0:02:57]}  Qa5 {[%clk 0:02:59]} 12. Kb1 {[%clk 0:02:47]}  Rfc8 {[%clk 0:02:58]} 13. Nd5 {[%clk 0:02:42]}  Qxd2 {[%clk 0:02:56]} 14. Rxd2 {[%clk 0:02:36]}  Nxd5 {[%clk 0:02:52]} 15. Bxg7 {[%clk 0:02:36]}  Kxg7 {[%clk 0:02:34]} 16. exd5 {[%clk 0:02:35]}  Bd7 {[%clk 0:02:34]} 17. h4 {[%clk 0:02:34]}  h6 {[%clk 0:02:34]} 18. h5 {[%clk 0:02:22]}  g5 {[%clk 0:02:33]} 19. Bd3 {[%clk 0:02:20]}  Rc7 {[%clk 0:02:10]} 20. Re1 {[%clk 0:02:19]}  Kf6 {[%clk 0:02:06]} 21. Rf2 {[%clk 0:02:06]}  e5 {[%clk 0:01:50]} 22. dxe6 {[%clk 0:02:04]}  Bxe6 {[%clk 0:01:44]} 23. b3 {[%clk 0:01:56]}  Rc5 {[%clk 0:01:42]} 24. Be4 {[%clk 0:01:47]}  Re5 {[%clk 0:01:36]} 25. Rd1 {[%clk 0:01:41]}  d5 {[%clk 0:01:32]} 26. Bd3 {[%clk 0:01:41]}  Re3 {[%clk 0:01:25]} 27. Kc1 {[%clk 0:01:29]}  Ke5 {[%clk 0:01:24]} 28. Kd2 {[%clk 0:01:27]}  Kf4 {[%clk 0:01:23]} 29. Rdf1 {[%clk 0:01:20]}  a5 {[%clk 0:01:17]} 30. a4 {[%clk 0:01:19]}  Bd7 {[%clk 0:01:08]} 31. Be2 {[%clk 0:01:04]}  Bc6 {[%clk 0:01:07]} 32. Bd1 {[%clk 0:01:03]}  Rae8 {[%clk 0:01:05]} 33. Re2 {[%clk 0:01:02]}  d4 {[%clk 0:01:00]} 34. Ref2 {[%clk 0:00:54]}  b5 {[%clk 0:00:59]} 35. axb5 {[%clk 0:00:49]}  Bxb5 {[%clk 0:00:59]} 36. Rg1 {[%clk 0:00:48]}  d3 {[%clk 0:00:53]} 37. c4 {[%clk 0:00:45]}  Bc6 {[%clk 0:00:48]} 38. Rgf1 {[%clk 0:00:41]}  R8e5 {[%clk 0:00:30]} 39. Rg1 {[%clk 0:00:39]}  Bxf3 {[%clk 0:00:18]} 40. Rgf1 {[%clk 0:00:37]}  Re2+ {[%clk 0:00:17]} 41. Bxe2 {[%clk 0:00:35]}  Rxe2+ {[%clk 0:00:13]} 42. Kxd3 {[%clk 0:00:31]}  Rxf2 {[%clk 0:00:09]} 43. Rxf2 {[%clk 0:00:31]}  Kg3 {[%clk 0:00:08]} 44. Ra2 {[%clk 0:00:27]}  Bxg4 {[%clk 0:00:06]} 45. c5 {[%clk 0:00:26]}  Bf3 {[%clk 0:00:04]} 46. Rxa5 {[%clk 0:00:24]}  f5 {[%clk 0:00:04]} 47. Ra6 {[%clk 0:00:20]} 1-0


[Site "https://www.chess.com"]

[Event "Titled Tuesday Blitz February 21 Late 2023"]
[White "Davidson, Kevin"]
[Black "Sailer, Mike"]
[WhiteFideId "2056810"]
[BlackFideId "2012901"]
[WhiteElo "2154"]
[BlackElo "2109"]
[Result "0-1"]
[Round "11"]
[TimeControl "180+2"]
[Date "2023.02.21"]
[WhiteClock "0:00:01"]
[BlackClock "0:00:23"]

1. e4 {[%clk 0:03:00]}  d5 {[%clk 0:02:59]} 2. exd5 {[%clk 0:03:00]}  Qxd5 {[%clk 0:02:58]} 3. Nc3 {[%clk 0:03:00]}  Qd6 {[%clk 0:02:58]} 4. d4 {[%clk 0:03:00]}  Nf6 {[%clk 0:02:55]} 5. Nf3 {[%clk 0:02:56]}  c6 {[%clk 0:02:55]} 6. Ne5 {[%clk 0:02:54]}  Nbd7 {[%clk 0:02:54]} 7. f4 {[%clk 0:02:52]}  g6 {[%clk 0:02:47]} 8. g4 {[%clk 0:02:50]}  Bg7 {[%clk 0:02:46]} 9. Bg2 {[%clk 0:02:50]}  Nb6 {[%clk 0:02:37]} 10. O-O {[%clk 0:02:42]}  Nbd5 {[%clk 0:02:36]} 11. Ne4 {[%clk 0:02:18]}  Nxe4 {[%clk 0:02:35]} 12. Bxe4 {[%clk 0:02:19]}  O-O {[%clk 0:02:13]} 13. c4 {[%clk 0:02:16]}  Nc7 {[%clk 0:02:05]} 14. Be3 {[%clk 0:02:11]}  f6 {[%clk 0:01:54]} 15. Nd3 {[%clk 0:02:04]}  f5 {[%clk 0:01:52]} 16. gxf5 {[%clk 0:01:47]}  gxf5 {[%clk 0:01:51]} 17. Bf3 {[%clk 0:01:16]}  Bxd4 {[%clk 0:01:51]} 18. Bxd4 {[%clk 0:01:15]}  Qxd4+ {[%clk 0:01:50]} 19. Kh1 {[%clk 0:01:16]}  Be6 {[%clk 0:01:40]} 20. b3 {[%clk 0:01:06]}  Rf6 {[%clk 0:01:22]} 21. Qe2 {[%clk 0:00:59]}  Kh8 {[%clk 0:01:20]} 22. Rg1 {[%clk 0:00:56]}  Rg8 {[%clk 0:01:20]} 23. Rxg8+ {[%clk 0:00:53]}  Kxg8 {[%clk 0:01:13]} 24. Re1 {[%clk 0:00:51]}  Ne8 {[%clk 0:00:55]} 25. Bg2 {[%clk 0:00:44]}  Nd6 {[%clk 0:00:53]} 26. Ne5 {[%clk 0:00:38]}  Qxf4 {[%clk 0:00:50]} 27. Rf1 {[%clk 0:00:32]}  Qh4 {[%clk 0:00:45]} 28. Rg1 {[%clk 0:00:30]}  Kf8 {[%clk 0:00:43]} 29. Nf3 {[%clk 0:00:23]}  Qh5 {[%clk 0:00:41]} 30. Qe3 {[%clk 0:00:16]}  Ne4 {[%clk 0:00:40]} 31. Ne5 {[%clk 0:00:14]}  Rh6 {[%clk 0:00:28]} 32. h3 {[%clk 0:00:08]}  Qh4 {[%clk 0:00:27]} 33. Bxe4 {[%clk 0:00:06]}  Qxe4+ {[%clk 0:00:25]} 34. Qxe4 {[%clk 0:00:06]}  Rxh3+ {[%clk 0:00:25]} 35. Kg2 {[%clk 0:00:05]}  fxe4 {[%clk 0:00:25]} 36. Kf2 {[%clk 0:00:01]}  Rc3 {[%clk 0:00:23]} 0-1


[Site "https://www.chess.com"]

[Event "Titled Tuesday Blitz February 21 Late 2023"]
[White "Chemin, Justo Reinaldo"]
[Black "Koziol, Kamil"]
[WhiteFideId "2101580"]
[BlackFideId "1161555"]
[WhiteElo "2040"]
[BlackElo "2286"]
[Result "0-1"]
[Round "11"]
[TimeControl "180+2"]
[Date "2023.02.21"]
[WhiteClock "0:00:13"]
[BlackClock "0:00:32"]

1. d4 {[%clk 0:03:00]}  e6 {[%clk 0:02:49]} 2. Nf3 {[%clk 0:03:00]}  d5 {[%clk 0:02:50]} 3. Bf4 {[%clk 0:02:59]}  Nf6 {[%clk 0:02:50]} 4. e3 {[%clk 0:03:00]}  c5 {[%clk 0:02:48]} 5. c3 {[%clk 0:02:59]}  Nc6 {[%clk 0:02:48]} 6. Nbd2 {[%clk 0:02:59]}  Bd6 {[%clk 0:02:48]} 7. Bd3 {[%clk 0:02:58]}  Qe7 {[%clk 0:02:43]} 8. Ne5 {[%clk 0:02:38]}  Nd7 {[%clk 0:02:37]} 9. Ndf3 {[%clk 0:02:24]}  f6 {[%clk 0:02:34]} 10. Nxc6 {[%clk 0:02:19]}  bxc6 {[%clk 0:02:34]} 11. Bg3 {[%clk 0:02:00]}  e5 {[%clk 0:02:16]} 12. dxe5 {[%clk 0:01:59]}  Nxe5 {[%clk 0:02:14]} 13. Nxe5 {[%clk 0:01:57]}  Bxe5 {[%clk 0:02:09]} 14. O-O {[%clk 0:01:55]}  O-O {[%clk 0:02:03]} 15. Qc2 {[%clk 0:01:50]}  g6 {[%clk 0:01:48]} 16. f4 {[%clk 0:01:42]}  Bd6 {[%clk 0:01:42]} 17. Rfe1 {[%clk 0:01:24]}  c4 {[%clk 0:01:37]} 18. Bf1 {[%clk 0:01:23]}  Bf5 {[%clk 0:01:37]} 19. Qa4 {[%clk 0:01:18]}  Qb7 {[%clk 0:01:32]} 20. e4 {[%clk 0:00:55]}  Bxe4 {[%clk 0:01:13]} 21. Bxc4 {[%clk 0:00:53]}  Qxb2 {[%clk 0:01:09]} 22. Bf1 {[%clk 0:00:40]}  Rfc8 {[%clk 0:00:50]} 23. Rac1 {[%clk 0:00:28]}  f5 {[%clk 0:00:47]} 24. c4 {[%clk 0:00:24]}  Qd4+ {[%clk 0:00:38]} 25. Kh1 {[%clk 0:00:23]}  Bc5 {[%clk 0:00:39]} 26. Be2 {[%clk 0:00:18]}  Rab8 {[%clk 0:00:37]} 27. cxd5 {[%clk 0:00:17]}  Qxa4 {[%clk 0:00:36]} 28. Rxc5 {[%clk 0:00:16]}  cxd5 {[%clk 0:00:32]} 29. Rec1 {[%clk 0:00:13]}  Rxc5 {[%clk 0:00:32]} 0-1


[Site "https://www.chess.com"]

[Event "Titled Tuesday Blitz February 21 Late 2023"]
[White "Li, Hui"]
[Black "Buscar, Michael"]
[WhiteFideId "15400310"]
[BlackFideId "2603616"]
[WhiteElo "1963"]
[BlackElo "2041"]
[Result "0-1"]
[Round "11"]
[TimeControl "180+2"]
[Date "2023.02.21"]
[WhiteClock "0:01:38"]
[BlackClock "0:02:09"]

1. e4 {[%clk 0:03:00]}  c6 {[%clk 0:02:58]} 2. d4 {[%clk 0:03:00]}  d6 {[%clk 0:02:58]} 3. Nd2 {[%clk 0:03:01]}  Nf6 {[%clk 0:02:57]} 4. c3 {[%clk 0:03:00]}  e5 {[%clk 0:02:57]} 5. Ngf3 {[%clk 0:02:59]}  Bg4 {[%clk 0:02:56]} 6. Be2 {[%clk 0:02:59]}  Nbd7 {[%clk 0:02:56]} 7. O-O {[%clk 0:02:58]}  Be7 {[%clk 0:02:55]} 8. h3 {[%clk 0:02:57]}  Bh5 {[%clk 0:02:55]} 9. Re1 {[%clk 0:02:47]}  O-O {[%clk 0:02:52]} 10. Qc2 {[%clk 0:02:45]}  Qc7 {[%clk 0:02:52]} 11. Nf1 {[%clk 0:02:41]}  Rfe8 {[%clk 0:02:49]} 12. Ng3 {[%clk 0:02:41]}  Bg6 {[%clk 0:02:50]} 13. dxe5 {[%clk 0:02:35]}  Nxe5 {[%clk 0:02:42]} 14. Nh4 {[%clk 0:02:27]}  d5 {[%clk 0:02:31]} 15. Nxg6 {[%clk 0:02:09]}  Nxg6 {[%clk 0:02:29]} 16. exd5 {[%clk 0:02:05]}  Nxd5 {[%clk 0:02:29]} 17. Bd2 {[%clk 0:02:03]}  Bc5 {[%clk 0:02:27]} 18. Bd3 {[%clk 0:01:55]}  Qxg3 {[%clk 0:02:25]} 19. b4 {[%clk 0:01:48]}  Bxf2+ {[%clk 0:02:23]} 20. Kf1 {[%clk 0:01:47]}  Rxe1+ {[%clk 0:02:16]} 21. Bxe1 {[%clk 0:01:46]}  Ne3+ {[%clk 0:02:15]} 22. Ke2 {[%clk 0:01:43]}  Nf4+ {[%clk 0:02:11]} 23. Kd2 {[%clk 0:01:38]}  Bxe1+ {[%clk 0:02:09]} 0-1


[Site "https://www.chess.com"]

[Event "Titled Tuesday Blitz February 21 Late 2023"]
[White "Kujawski, Adam"]
[Black "De Souza, Cristiano Gomes"]
[WhiteFideId "1100920"]
[BlackFideId "2151758"]
[WhiteElo "2173"]
[BlackElo "2018"]
[Result "0-1"]
[Round "11"]
[TimeControl "180+2"]
[Date "2023.02.21"]
[WhiteClock "0:00:05"]
[BlackClock "0:00:43"]

1. e4 {[%clk 0:03:00]}  c5 {[%clk 0:02:58]} 2. Nf3 {[%clk 0:03:00]}  d6 {[%clk 0:02:58]} 3. d4 {[%clk 0:03:00]}  cxd4 {[%clk 0:02:58]} 4. Nxd4 {[%clk 0:03:01]}  Nf6 {[%clk 0:02:59]} 5. Nc3 {[%clk 0:03:01]}  a6 {[%clk 0:02:59]} 6. Bg5 {[%clk 0:03:01]}  e6 {[%clk 0:02:59]} 7. f4 {[%clk 0:03:01]}  Be7 {[%clk 0:02:59]} 8. Qf3 {[%clk 0:03:01]}  h6 {[%clk 0:02:59]} 9. Bh4 {[%clk 0:03:01]}  g5 {[%clk 0:03:00]} 10. fxg5 {[%clk 0:03:00]}  Nfd7 {[%clk 0:03:00]} 11. Bf2 {[%clk 0:02:34]}  Ne5 {[%clk 0:02:58]} 12. Qe2 {[%clk 0:02:33]}  hxg5 {[%clk 0:02:58]} 13. O-O-O {[%clk 0:02:30]}  Nbc6 {[%clk 0:02:55]} 14. Nb3 {[%clk 0:02:18]}  Bd7 {[%clk 0:02:40]} 15. g3 {[%clk 0:02:09]}  a5 {[%clk 0:02:31]} 16. a4 {[%clk 0:02:06]}  Nb4 {[%clk 0:02:30]} 17. Kb1 {[%clk 0:01:57]}  Bc6 {[%clk 0:02:25]} 18. Bg2 {[%clk 0:01:51]}  Qc7 {[%clk 0:02:16]} 19. Nb5 {[%clk 0:01:48]}  Bxb5 {[%clk 0:02:15]} 20. Qxb5+ {[%clk 0:01:43]}  Kf8 {[%clk 0:02:15]} 21. c3 {[%clk 0:01:26]}  Nbc6 {[%clk 0:02:11]} 22. Bb6 {[%clk 0:01:21]}  Qc8 {[%clk 0:02:07]} 23. h4 {[%clk 0:01:16]}  gxh4 {[%clk 0:02:06]} 24. gxh4 {[%clk 0:01:17]}  Kg7 {[%clk 0:01:51]} 25. Rdg1 {[%clk 0:01:11]}  Rxh4 {[%clk 0:01:38]} 26. Rxh4 {[%clk 0:01:09]}  Bxh4 {[%clk 0:01:38]} 27. Qe2 {[%clk 0:01:02]}  Ng6 {[%clk 0:01:30]} 28. Bh3 {[%clk 0:00:57]}  Ne5 {[%clk 0:01:28]} 29. Nd4 {[%clk 0:00:48]}  Qc4 {[%clk 0:01:15]} 30. Qg2 {[%clk 0:00:13]}  Qxa4 {[%clk 0:01:04]} 31. Bxe6 {[%clk 0:00:09]}  fxe6 {[%clk 0:00:58]} 32. Nxe6+ {[%clk 0:00:10]}  Kf7 {[%clk 0:00:58]} 33. Qh3 {[%clk 0:00:08]}  Qb5 {[%clk 0:00:51]} 34. Qf5+ {[%clk 0:00:08]}  Bf6 {[%clk 0:00:50]} 35. Rxg6 {[%clk 0:00:05]}  Nxg6 {[%clk 0:00:47]} 36. Bd4 {[%clk 0:00:05]}  Qxf5 {[%clk 0:00:43]} 37. exf5 {[%clk 0:00:05]} 0-1


[Site "https://www.chess.com"]